{"text_format":"1","workbook":"xlsx","n_sheets":10,"sheets":["مناهج","تقنيات","طرائق","فيزياء وكيمياء","الرياضيات (أعداد عمليات حسابية","حاسوب ","مؤسسات","العرضية","عملي","ورقة1"],"not_rendered":{"charts":0,"images":0,"macros":1,"external_links":0,"defined_names":24,"comments":0,"pivot_tables":0},"unopened":[],"bounds":{"document_bytes":16777216,"sheet_cells":100000,"rows_first":2000,"rows_last":500,"rows_between":2000,"halvings":0,"cell_chars":16384,"cell_head_chars":4096},"cells_cut":0,"cells_raw":0,"read":"whole","date_system":"1900"}

{"sheet":"مناهج","index":0,"n_rows":20,"n_cols":16,"rows_kept":20,"cut":false,"hidden":false,"merged":[[18,0,18,3],[5,0,5,3],[1,3,1,4],[3,6,3,7],[3,8,4,8],[3,0,4,0],[3,1,4,1],[3,2,4,2],[3,3,4,3],[3,4,4,4],[3,5,4,5]]}
[null,null,"المقرر: مناهج تربوية"]
[null,null,"السنة: الثالثه","الدورة: التكميلية",null,null,"العام الدراسي : 2017-2018"]
[null,null,"التاريخ :  20 /9/ 2018","مواد الفصل : الأول",null,null," نوع الامتحان : عملي + نظري"]
["م","الرقم الجامعي","الاسم والشهرة","اسم الأب","العملي","النظري","المجموع",null,"ملاحظات"]
[null,null,null,null,null,null,"رقماً","كتابةً"]
["حملة رابعة",null,null,null,null,null,null,null,null,null,null,"الرقم الامتحاني","الاسم","العلامة النهائية"]
[1,1921,"حسان الهلال",null,24,{"$f":"VLOOKUP(B7,L:N,3,0)","v":48},{"$f":"IF(F7=\"غائب\",F7,IF(E7=\"غائب\",F7,F7+E7))","v":72},{"$f":"IF(G7=\"غائب\",G7,limam(G7))","v":"اثنتان و سبعون "},null,null,null,1921,"حسان الهلال",48,{"$f":"VLOOKUP(L7,B:F,5,0)","v":48},{"$f":"N7-O7","v":0}]
[2,2180,"محمد اليوسف","بسام",10,{"$f":"VLOOKUP(B8,L:N,3,0)","v":56},66,{"$f":"IF(G8=\"غائب\",G8,limam(G8))","v":"ست و ستون "},null,null,null,2180,"محمد اليوسف",56,{"$f":"VLOOKUP(L8,B:F,5,0)","v":56},{"$f":"N8-O8","v":0}]
[3,2680,"نوف محمد","عادل",20,55,75,{"$f":"IF(G9=\"غائب\",G9,limam(G9))","v":"خمس و سبعون "},null,null,null,2680,"نوف محمد",55,55,0]
[4,3045,"زهور قنداقجي","محمد",14,49,63,{"$f":"IF(G10=\"غائب\",G10,limam(G10))","v":"ثلاث و ستون "},null,null,null,3045,"زهور قنداقجي",49,49,0]
[5,3612,"مياده جمل","مروان",11,53,64,{"$f":"IF(G11=\"غائب\",G11,limam(G11))","v":"أربع و ستون "},null,null,null,3612,"مياده جمل",53,53,0]
[6,3640,"نور خليف","كوردان",15,55,70,{"$f":"IF(G12=\"غائب\",G12,limam(G12))","v":"سبعون "},null,null,null,3640,"نور خليف",55,55,0]
[7,3794,"فاتن جسري","مخلص",11,39,50,{"$f":"IF(G13=\"غائب\",G13,limam(G13))","v":"خمسون "},null,null,null,3794,"فاتن جسري",39,39,0]
[8,4515,"فاطمة الدالي","عماد",14,51,65,{"$f":"IF(G14=\"غائب\",G14,limam(G14))","v":"خمس و ستون "},null,null,null,4515,"فاطمة الدالي",51,51,0]
[9,5026,"شهامة العسل","كمال",15,46,61,{"$f":"IF(G15=\"غائب\",G15,limam(G15))","v":"إحدى و ستون "},null,null,null,5026,"شهامة العسل",46,46,0]
[10,5067,"بثينة العمر","ابراهيم",17,47,64,{"$f":"IF(G16=\"غائب\",G16,limam(G16))","v":"أربع و ستون "},null,null,null,5067,"بثينة العمر",47,47,0]
[11,5689,"مروة قاق","محمد جميل ",10,54,64,{"$f":"IF(G17=\"غائب\",G17,limam(G17))","v":"أربع و ستون "},null,null,null,5689,"مروة قاق",54,54,0]
[12,5834,"فاطمة عمعوم","موسى",13,59,72,{"$f":"IF(G18=\"غائب\",G18,limam(G18))","v":"اثنتان و سبعون "},null,null,null,5834,"فاطمة عمعوم",59,59,0]
["استضافة حلب (حملة)",null,null,null,null,null,null,null,null,null,null,15343,"صالح جالود",55,55,0]
[1,15343,"صالح جالود","عدنان",14,55,{"$f":"IF(F20=\"غائب\",F20,IF(E20=\"غائب\",F20,F20+E20))","v":69},{"$f":"IF(G20=\"غائب\",G20,limam(G20))","v":"تسع و ستون "}]

{"sheet":"تقنيات","index":1,"n_rows":60,"n_cols":16,"rows_kept":60,"cut":false,"hidden":false,"merged":[[1,3,1,4],[42,0,42,8],[58,0,58,8],[3,5,4,5],[3,6,3,7],[3,8,4,8],[3,0,4,0],[3,1,4,1],[3,2,4,2],[3,3,4,3],[3,4,4,4],[13,0,13,8],[5,0,5,3]]}
[null,null,"المقرر: تقنيات التعليم"]
[null,null,"السنة: الثالثة","الدورة: التكميلية",null,null,"العام الدراسي : 2017-2018"]
[null,null,"التاريخ :  18 /9/ 2018","مواد الفصل : الأول",null,null," نوع الامتحان : عملي + نظري"]
["م","الرقم الجامعي","الاسم والشهرة","اسم الأب","العملي","النظري","المجموع",null,"ملاحظات"]
[null,null,null,null,null,null,"رقماً","كتابةً"]
["حملة سنة رابعة",null,null,null,null,null,null,null,null,null,null,null,"الرقم الامتحاني","الاسم","العلامة النهائية"]
[1,2906,"مرام خضر","نصرالدين","غائب",{"$f":"VLOOKUP(B7,M:O,3,0)","v":66},{"$f":"IF(F7=\"غائب\",F7,IF(E7=\"غائب\",F7,F7+E7))","v":66},{"$f":"IF(G7=\"غائب\",G7,limam(G7))","v":"ست و ستون "},null,null,null,null,2906,"مرام خضر",66,{"$f":"VLOOKUP(M7,B:F,5,0)","v":66}]
[2,4042,"سلمى بصبوص","عطيه",22,{"$f":"VLOOKUP(B8,M:O,3,0)","v":44},66,{"$f":"IF(G8=\"غائب\",G8,limam(G8))","v":"ست و ستون "},null,null,null,null,4042,"سلمى بصبوص",44,{"$f":"VLOOKUP(M8,B:F,5,0)","v":44}]
[3,4158,"خالد العبدالله","رياض",11,46,57,{"$f":"IF(G9=\"غائب\",G9,limam(G9))","v":"سبع و خمسون "},null,null,null,null,4158,"خالد العبدالله",46,46]
[4,4159,"أحمد الشبيب","عبود",11,40,51,{"$f":"IF(G10=\"غائب\",G10,limam(G10))","v":"إحدى و خمسون "},null,null,null,null,4159,"أحمد الشبيب",40,40]
[5,5355,"مها مشعل","حمدو",15,25,40,{"$f":"IF(G11=\"غائب\",G11,limam(G11))","v":"أربعون "},null,null,null,null,5355,"مها مشعل",25,25]
[6,5785,"رهف العبدالله",null,11,47,58,{"$f":"IF(G12=\"غائب\",G12,limam(G12))","v":"ثمان و خمسون "},null,"علامة عملي كشف",null,null,5785,"رهف العبدالله",47,47]
[7,6254,"بتول الخطيب","محمد","غائب",64,64,{"$f":"IF(G13=\"غائب\",G13,limam(G13))","v":"أربع و ستون "},null,null,null,null,6254,"بتول الخطيب",64,64]
["المنقطعين",null,null,null,null,null,null,null,null,null,null,null,17114,"أمينة العلي",59,59]
[1,17114,"أمينة العلي","حمود","غائب",59,{"$f":"IF(F15=\"غائب\",F15,IF(E15=\"غائب\",F15,F15+E15))","v":59},{"$f":"IF(G15=\"غائب\",G15,limam(G15))","v":"تسع و خمسون "}]
[]
[]
[]
[]
[]
[]
[]
[]
[]
[]
[]
[]
[]
[]
[]
[]
[null,17023,"شمسه الغضبان الهنيدي",null,15,"غائب",{"$f":"IF(F32=\"غائب\",F32,IF(E32=\"غائب\",F32,F32+E32))","v":"غائب"},{"$f":"IF(G32=\"غائب\",G32,limam(G32))","v":"غائب"}]
[null,17100,"علا الواوي",null,"غائب","غائب","غائب",{"$f":"IF(G33=\"غائب\",G33,limam(G33))","v":"غائب"}]
[null,17102,"طيف الحمود الخلف",null,"غائب","غائب","غائب",{"$f":"IF(G34=\"غائب\",G34,limam(G34))","v":"غائب"}]
[" ",null,null,"أستضافة حلب سنة ثالثة"]
[null,10331,"صفاء الشبيب","ابراهيم","غائب","غائب",{"$f":"IF(F36=\"غائب\",F36,IF(E36=\"غائب\",F36,F36+E36))","v":"غائب"},{"$f":"IF(G36=\"غائب\",G36,limam(G36))","v":"غائب"}]
[null,10591,"ناهد سلامه","مجحم",20,"غائب","غائب",{"$f":"IF(G37=\"غائب\",G37,limam(G37))","v":"غائب"}]
[null,10547,"مصطفى دبوري","خالد",12,"غائب","غائب",{"$f":"IF(G38=\"غائب\",G38,limam(G38))","v":"غائب"}]
[null,10328,"أسماء العبدالله","حسين",18,"غائب","غائب",{"$f":"IF(G39=\"غائب\",G39,limam(G39))","v":"غائب"}]
[null,10622,"عبير نايف","عامر","غائب","غائب","غائب",{"$f":"IF(G40=\"غائب\",G40,limam(G40))","v":"غائب"}]
[null,10684,"فاطمة السبسبي","عبد الكريم","غائب","غائب","غائب",{"$f":"IF(G41=\"غائب\",G41,limam(G41))","v":"غائب"}]
[null,10685,"بتول كرنازي","عبد الجبار","غائب","غائب","غائب",{"$f":"IF(G42=\"غائب\",G42,limam(G42))","v":"غائب"}]
["أستضافة أدلب"]
[null,11460,"أحمد الشدهان","حسين","غائب","غائب",{"$f":"IF(F44=\"غائب\",F44,IF(E44=\"غائب\",F44,F44+E44))","v":"غائب"},{"$f":"IF(G44=\"غائب\",G44,limam(G44))","v":"غائب"}]
[null,11614,"سماح نجار","احمد","غائب","غائب","غائب",{"$f":"IF(G45=\"غائب\",G45,limam(G45))","v":"غائب"}]
[null,11270,"عفراء بريش","عبد النالصر","غائب","غائب","غائب",{"$f":"IF(G46=\"غائب\",G46,limam(G46))","v":"غائب"}]
[null,11282,"ياسمين الرحوم","حسن","غائب","غائب","غائب",{"$f":"IF(G47=\"غائب\",G47,limam(G47))","v":"غائب"}]
[null,11327,"حنان الابراهيم",null,"غائب","غائب","غائب",{"$f":"IF(G48=\"غائب\",G48,limam(G48))","v":"غائب"}]
[null,11336,"صالح الابراهيم","يوسف","غائب","غائب","غائب",{"$f":"IF(G49=\"غائب\",G49,limam(G49))","v":"غائب"}]
[null,11364,"نور الصبيح","علاوي","غائب","غائب","غائب",{"$f":"IF(G50=\"غائب\",G50,limam(G50))","v":"غائب"}]
[null,11406,"أيهم المحيميد","أحمد","غائب","غائب","غائب",{"$f":"IF(G51=\"غائب\",G51,limam(G51))","v":"غائب"}]
[null,11422,"هديل البكور","أحمد","غائب","غائب","غائب",{"$f":"IF(G52=\"غائب\",G52,limam(G52))","v":"غائب"}]
[null,11489,"أحمد الحمود","حسين","غائب","غائب","غائب",{"$f":"IF(G53=\"غائب\",G53,limam(G53))","v":"غائب"}]
[null,11518,"فاطمة ضروبة","فواز","غائب","غائب","غائب",{"$f":"IF(G54=\"غائب\",G54,limam(G54))","v":"غائب"}]
[null,11544,"دعاء قفاس","أحمد","غائب","غائب","غائب",{"$f":"IF(G55=\"غائب\",G55,limam(G55))","v":"غائب"}]
[null,11579,"مروى أحمد عبد","حسين","غائب","غائب","غائب",{"$f":"IF(G56=\"غائب\",G56,limam(G56))","v":"غائب"}]
[null,11594,"أيمن الابراهيم ","محمد ","غائب","غائب","غائب",{"$f":"IF(G57=\"غائب\",G57,limam(G57))","v":"غائب"}]
[null,11611,"مريم الابراهيم","محمد","غائب","غائب","غائب",{"$f":"IF(G58=\"غائب\",G58,limam(G58))","v":"غائب"}]
["أستضافة الفرات"]
[null,12086,"ياسر العبود","محمود",20,"غائب",{"$f":"IF(F60=\"غائب\",F60,IF(E60=\"غائب\",F60,F60+E60))","v":"غائب"},{"$f":"IF(G60=\"غائب\",G60,limam(G60))","v":"غائب"}]

{"sheet":"طرائق","index":2,"n_rows":9,"n_cols":16,"rows_kept":9,"cut":false,"hidden":false,"merged":[[5,0,5,3],[1,3,1,5],[1,6,1,8],[3,6,3,7],[3,8,4,8],[3,0,4,0],[3,1,4,1],[3,2,4,2],[3,3,4,3],[3,4,4,4],[3,5,4,5]]}
[null,null,"المقرر: طرائق التدريس"]
[null,null,"السنة: الثالثه","الدورة:التكميلية",null,null,"العام الدراسي : 2017-2018"]
[null,null,"التاريخ :  - /9/ 2018","مواد الفصل : الأول",null,null," نوع الامتحان : عملي + نظري"]
["م","الرقم الجامعي","الاسم والشهرة","اسم الأب","العملي","النظري","المجموع",null,"ملاحظات"]
[null,null,null,null,null,null,"رقماً","كتابةً"]
["حملة سنة رابعة",null,null,null,null,null,null,null,null,null,null,"الرقم الامتحاني","الاسم","العلامة النهائية"]
[1,2906,"مرام خضر","نصرالدين",6,{"$f":"VLOOKUP(B7,L:N,3,0)","v":56},{"$f":"IF(F7=\"غائب\",F7,IF(E7=\"غائب\",F7,F7+E7))","v":62},{"$f":"IF(G7=\"غائب\",G7,limam(G7))","v":"اثنتان و ستون "},null,null,null,2906,"مرام خضر",56,{"$f":"VLOOKUP(L7,B:F,5,0)","v":56},{"$f":"N7-O7","v":0}]
[2,4356,"شيماء الخالد","رضوان","غائب",{"$f":"VLOOKUP(B8,L:N,3,0)","v":55},{"$f":"IF(F8=\"غائب\",F8,IF(E8=\"غائب\",F8,F8+E8))","v":55},{"$f":"IF(G8=\"غائب\",G8,limam(G8))","v":"خمس و خمسون "},null,null,null,4356,"شيماء الخالد",55,{"$f":"VLOOKUP(L8,B:F,5,0)","v":55},{"$f":"N8-O8","v":0}]
[3,4928,"جورجي عيسى ","عيسى",8,{"$f":"VLOOKUP(B9,L:N,3,0)","v":42},{"$f":"IF(F9=\"غائب\",F9,IF(E9=\"غائب\",F9,F9+E9))","v":50},{"$f":"IF(G9=\"غائب\",G9,limam(G9))","v":"خمسون "},null,null,null,4928,"جورجي عيسى",42,{"$f":"VLOOKUP(L9,B:F,5,0)","v":42},0]

{"sheet":"فيزياء وكيمياء","index":3,"n_rows":8,"n_cols":14,"rows_kept":8,"cut":false,"hidden":false,"merged":[[3,8,4,8],[5,0,5,3],[1,3,1,5],[1,6,1,7],[2,3,2,5],[2,6,2,7],[3,5,4,5],[3,6,3,7],[3,0,4,0],[3,1,4,1],[3,2,4,2],[3,3,4,3],[3,4,4,4]]}
[null,null,"العلوم (فيزياء وكيمياء)"]
[null,null,"السنة: الثالثه","الدورة:التكميلية",null,null,"العام الدراسي : 2017-2018"]
[null,null,"التاريخ : 26 /9/ 2018","مواد الفصل : الأول",null,null," نوع الامتحان : عملي + نظري"]
["م","الرقم الجامعي","الاسم والشهرة","اسم الأب","العملي","النظري","المجموع",null,"ملاحظات"]
[null,null,null,null,null,null,"رقماً","كتابةً"]
["رابعة تخلف ثالثة",null,null,null,null,null,null,null,null,null,null,"الرقم الامتحاني","الاسم","العلامة النهائية"]
[1,2256,"عزام حسين","محمد",9,{"$f":"VLOOKUP(B7,L:N,3,0)","v":38},{"$f":"IF(F7=\"غائب\",F7,IF(E7=\"غائب\",F7,F7+E7))","v":47},{"$f":"IF(G7=\"غائب\",G7,limam(G7))","v":"سبع و أربعون "},null,null,null,2256,"عزام حسين",38]
[2,5522,"بيان الخليل","محمد","غائب",{"$f":"VLOOKUP(B8,L:N,3,0)","v":63},63,{"$f":"IF(G8=\"غائب\",G8,limam(G8))","v":"ثلاث و ستون "},null,null,null,5522,"بيان الخليل",63]

{"sheet":"الرياضيات (أعداد عمليات حسابية","index":4,"n_rows":38,"n_cols":9,"rows_kept":38,"cut":false,"hidden":false,"merged":[[5,0,5,3],[1,3,1,5],[1,7,1,8],[2,1,2,2],[3,0,4,0],[3,1,4,1],[3,2,4,2],[3,3,4,3],[3,4,4,4],[3,5,4,5],[3,6,3,7],[3,8,4,8]]}
[null,null,"المقرر: رياضيات(أعداد وعمليات حسابيه)"]
[null,null,"السنة: الثالثه","الدورة:التكميلية",null,null,"العام الدراسي : 2016-2017","العام الدراسي : 2017-2018"]
[null,"التاريخ : 20 /9/ 2018",null,"مواد الفصل : الأول",null,null," نوع الامتحان : عملي + نظري"]
["م","الرقم الجامعي","الاسم والشهرة","اسم الأب","العملي","النظري","المجموع",null,"ملاحظات"]
[null,null,null,null,null,null,"رقماً","كتابةً"]
["حملة سنة رابعة"]
[1,2670,"خالد اليوسف","نعسان",15,54,{"$f":"IF(F7=\"غائب\",F7,IF(E7=\"غائب\",F7,F7+E7))","v":69},{"$f":"IF(G7=\"غائب\",G7,limam(G7))","v":"تسع و ستون "}]
[2,2680,"نوف محمد","عادل",12,56,68,{"$f":"IF(G8=\"غائب\",G8,limam(G8))","v":"ثمان و ستون "}]
[3,2850,"مروه درويش","عبدالرزاق",25,70,95,{"$f":"IF(G9=\"غائب\",G9,limam(G9))","v":"خمس و تسعون "}]
[4,3064,"كيندا محفوض","سامو",18,47,65,{"$f":"IF(G10=\"غائب\",G10,limam(G10))","v":"خمس و ستون "}]
[5,3134,"صابرين وسوف","خضور",19,51,70,{"$f":"IF(G11=\"غائب\",G11,limam(G11))","v":"سبعون "}]
[6,3306,"عمر المحمود","يوسف",0,53,53,{"$f":"IF(G12=\"غائب\",G12,limam(G12))","v":"ثلاث و خمسون "}]
[7,3547,"روعه اخرس","محمود",15,26,41,{"$f":"IF(G13=\"غائب\",G13,limam(G13))","v":"إحدى و أربعون "}]
[8,3590,"لما المسعود","محمد",18,62,80,{"$f":"IF(G14=\"غائب\",G14,limam(G14))","v":"ثمانون "}]
[9,3619,"ماري عديره","منذر",8,59,67,{"$f":"IF(G15=\"غائب\",G15,limam(G15))","v":"سبع و ستون "}]
[10,3629,"جهاد رزق","خيرالله",22,67,89,{"$f":"IF(G16=\"غائب\",G16,limam(G16))","v":"تسع و ثمانون "}]
[11,3662,"صباح العبيد السعيد","زياد",20,47,67,{"$f":"IF(G17=\"غائب\",G17,limam(G17))","v":"سبع و ستون "}]
[12,3820,"اسراء الابراهيم","عبد الكريم",13,66,79,{"$f":"IF(G18=\"غائب\",G18,limam(G18))","v":"تسع و سبعون "}]
[13,3849,"أسماء ابراهيم","خالد",14,51,65,{"$f":"IF(G19=\"غائب\",G19,limam(G19))","v":"خمس و ستون "}]
[14,3887,"سوزان العوض","أحمد",28,52,80,{"$f":"IF(G20=\"غائب\",G20,limam(G20))","v":"ثمانون "}]
[15,4053,"نور الصالح","عدنان",14,52,66,{"$f":"IF(G21=\"غائب\",G21,limam(G21))","v":"ست و ستون "}]
[16,4097,"فاطمه المصطفى","محمود",21,41,62,{"$f":"IF(G22=\"غائب\",G22,limam(G22))","v":"اثنتان و ستون "}]
[17,4134,"غدير المحمد","محمد",15,58,73,{"$f":"IF(G23=\"غائب\",G23,limam(G23))","v":"ثلاث و سبعون "}]
[18,4156,"خالد العلي الثلجة","محمد",16,62,78,{"$f":"IF(G24=\"غائب\",G24,limam(G24))","v":"ثمان و سبعون "}]
[19,4177,"فلك الخضير","عوض",20,53,73,{"$f":"IF(G25=\"غائب\",G25,limam(G25))","v":"ثلاث و سبعون "}]
[20,4540,"مريم العساف","عمار",12,60,72,{"$f":"IF(G26=\"غائب\",G26,limam(G26))","v":"اثنتان و سبعون "}]
[21,4555,"نور قصاب","مخلص",18,70,88,{"$f":"IF(G27=\"غائب\",G27,limam(G27))","v":"ثمان و ثمانون "}]
[22,4579,"عبدالرزاق عبدالعزيز","جمعة",0,57,57,{"$f":"IF(G28=\"غائب\",G28,limam(G28))","v":"سبع و خمسون "}]
[23,4974,"مرح العثمان المصطفى","جهاد",14,64,78,{"$f":"IF(G29=\"غائب\",G29,limam(G29))","v":"ثمان و سبعون "}]
[24,5241,"ميساء محمد مسعف السلوم","محمد مسعف",28,42,70,{"$f":"IF(G30=\"غائب\",G30,limam(G30))","v":"سبعون "}]
[25,5288,"راما شومل","أسامة",16,59,75,{"$f":"IF(G31=\"غائب\",G31,limam(G31))","v":"خمس و سبعون "}]
[26,5298,"مروة الطيباني","أحمد",16,57,73,{"$f":"IF(G32=\"غائب\",G32,limam(G32))","v":"ثلاث و سبعون "}]
[27,5403,"كاتيا ايواز","صليبا",18,67,85,{"$f":"IF(G33=\"غائب\",G33,limam(G33))","v":"خمس و ثمانون "}]
[28,5541,"سرية الاحمد","عبد",22,47,69,{"$f":"IF(G34=\"غائب\",G34,limam(G34))","v":"تسع و ستون "}]
[29,5570,"جيهان جمال","محمد",18,53,71,{"$f":"IF(G35=\"غائب\",G35,limam(G35))","v":"إحدى و سبعون "}]
[30,5580,"سلام علوان","حرشو",5,31,36,{"$f":"IF(G36=\"غائب\",G36,limam(G36))","v":"ست و ثلاثون "}]
[31,5591,"ورود بالا","شحود",8,28,36,{"$f":"IF(G37=\"غائب\",G37,limam(G37))","v":"ست و ثلاثون "}]
[32,5621,"مريم عبدالله الحسين","عبدالله",22,52,74,{"$f":"IF(G38=\"غائب\",G38,limam(G38))","v":"أربع و سبعون "}]

{"sheet":"حاسوب ","index":5,"n_rows":11,"n_cols":16,"rows_kept":11,"cut":false,"hidden":false,"merged":[[1,3,1,5],[1,6,1,7],[2,3,2,5],[2,6,2,7],[3,5,4,5],[3,3,4,3],[3,4,4,4],[3,6,3,7],[3,8,4,8],[3,0,4,0],[3,1,4,1],[3,2,4,2],[9,0,9,8],[5,0,5,3]]}
[null,null,"المقرر: الحاسوب التربوي /1/"]
[null,null,"السنة: الثالثة","الدورة:التكميلية",null,null,"العام الدراسي : 2017-2018"]
[null,null,"التاريخ : 2018/9/18","مواد الفصل : الأول",null,null," نوع الامتحان : عملي + نظري"]
["م","الرقم الجامعي","الاسم والشهرة","اسم الأب","العملي","النظري","المجموع",null,"ملاحظات"]
[null,null,null,null,null,null,"رقماً","كتابةً"]
["حملة سنة رابعة",null,null,null,null,null,null,null,null,null,null,null,"الرقم الامتحاني","الاسم","العلامة النهائية"]
[1,2895,"روان الصدير","زياد",10,{"$f":"VLOOKUP(B7,M:O,3,0)","v":32},{"$f":"IF(F7=\"غائب\",F7,IF(E7=\"غائب\",F7,F7+E7))","v":42},{"$f":"IF(G7=\"غائب\",G7,limam(G7))","v":"اثنتان و أربعون "},null,null,null,null,2895,"روان الصدير",32,{"$f":"VLOOKUP(M7,B:F,5,0)","v":32}]
[2,6254,"بتول الخطيب","محمد","غائب",{"$f":"VLOOKUP(B8,M:O,3,0)","v":50},{"$f":"IF(F8=\"غائب\",F8,IF(E8=\"غائب\",F8,F8+E8))","v":50},{"$f":"IF(G8=\"غائب\",G8,limam(G8))","v":"خمسون "},null,null,null,null,6254,"بتول الخطيب",50,{"$f":"VLOOKUP(M8,B:F,5,0)","v":50}]
[3,6696,"سناء علي",null,"غائب",54,54,{"$f":"IF(G9=\"غائب\",G9,limam(G9))","v":"أربع و خمسون "},null,null,null,null,6696,"سناء علي",54,54]
["منقطعين",null,null,null,null,null,null,null,null,null,null,null,17029,"رقية العيسى",60,60]
[1,17029,"رقية العيسى","خليل","غائب",60,{"$f":"IF(F11=\"غائب\",F11,IF(E11=\"غائب\",F11,F11+E11))","v":60},{"$f":"IF(G11=\"غائب\",G11,limam(G11))","v":"ستون "}]

{"sheet":"مؤسسات","index":6,"n_rows":11,"n_cols":18,"rows_kept":11,"cut":false,"hidden":false,"merged":[[5,0,5,3],[1,3,1,5],[3,7,4,7],[3,0,4,0],[3,1,4,1],[3,2,4,2],[3,3,4,3],[3,4,4,4],[3,5,3,6]]}
[null,null,"المقرر: مؤسسات تربية الطفل"]
[null,null,"السنة: الثالثة","الدورة:التكميلية",null,null,"العام الدراسي : 2017-2018"]
[null,null,"التاريخ :  -18 /9/ 2018","مواد الفصل : الأول",null,null," نوع الامتحان :   نظري"]
["م","الرقم الجامعي","الاسم والشهرة","اسم الأب","النظري","المجموع",null,"ملاحظات"]
[null,null,null,null,null,"رقماً","كتابةً"]
["سنة رابعة تخلف ثالثة"]
[1,2701,"رقيه الحروش","فجر",{"$f":"VLOOKUP(B7,L:P,5,0)","v":80},{"$f":"E7","v":80},{"$f":"IF(F7=\"غائب\",F7,limam(F7))","v":"ثمانون "},null,null,null,null,2701,"رقيه الحروش",null,null,80,{"$f":"VLOOKUP(L7,B:E,4,0)","v":80},{"$f":"P7-Q7","v":0}]
[2,3665,"كريس البرشيني","حسام",{"$f":"VLOOKUP(B8,L:P,5,0)","v":72},{"$f":"E8","v":72},{"$f":"IF(F8=\"غائب\",F8,limam(F8))","v":"اثنتان و سبعون "},null,null,null,null,3665,"كريس البرشيني",null,null,72,{"$f":"VLOOKUP(L8,B:E,4,0)","v":72},{"$f":"P8-Q8","v":0}]
[3,4109,"محمود المصيني","محمد يوسف",{"$f":"VLOOKUP(B9,L:P,5,0)","v":72},{"$f":"E9","v":72},{"$f":"IF(F9=\"غائب\",F9,limam(F9))","v":"اثنتان و سبعون "},null,null,null,null,4109,"محمود المصيني",null,null,72,{"$f":"VLOOKUP(L9,B:E,4,0)","v":72},0]
[4,5084,"ديالا المصري","محمد ديب",{"$f":"VLOOKUP(B10,L:P,5,0)","v":62},{"$f":"E10","v":62},{"$f":"IF(F10=\"غائب\",F10,limam(F10))","v":"اثنتان و ستون "},null,null,null,null,5084,"ديالا المصري",null,null,62,{"$f":"VLOOKUP(L10,B:E,4,0)","v":62},0]
[5,15343,"صالح جالود","عدنان",{"$f":"VLOOKUP(B11,L:P,5,0)","v":70},{"$f":"E11","v":70},{"$f":"IF(F11=\"غائب\",F11,limam(F11))","v":"سبعون "},null,null,null,null,15343,"صالح جالود",null,null,70,{"$f":"VLOOKUP(L11,B:E,4,0)","v":70},0]

{"sheet":"العرضية","index":7,"n_rows":548,"n_cols":24,"rows_kept":548,"cut":false,"hidden":false,"merged":[[2,13,2,15],[2,16,2,18],[2,19,2,21],[2,22,2,23],[0,0,0,2],[1,0,1,2],[1,9,1,12],[2,0,3,0],[2,1,3,1],[2,2,3,2],[2,3,3,3],[2,4,2,6],[2,7,2,9],[2,10,2,12]]}
["جامعة حماة",null,null,"السنة الثالثة",null,null,"العام الدراسي:2015-2016",null,null,null,"الدورة الاولى",null,null,null,null,"مواد الفصل:  الأول"]
["كلية التربية "]
["م","الرقم الجامعي","الاسم والشهرة","اسم الأب","مناهج تربوية",null,null,"تقنيات التعليم",null,null,"طرائق التدريس الخاصة بالتعليم الأساسي",null,null,"العلوم (فيزياء وكيمياء) وطرائق تدريسها",null,null,"الرياضيات (أعداد عمليات حسابية وطرائق تدريسها)",null,null,"الحاسوب التربوي (1)",null,null,"مؤسسات تربية الطفل"]
[null,null,null,null,"عملي","نظري","مجموع","عملي","نظري","مجموع","عملي","نظري","مجموع","عملي","نظري","مجموع","عملي","نظري","مجموع","عملي","نظري","مجموع","نظري","مجموع"]
[null,null,"الدرجة العظمى",null,30,70,100,30,70,100,30,70,100,30,70,100,30,70,100,30,70,100,100,100]
[1,1736,"نوره المحمد","محمد"]
[2,2646,"نايفة الأحمد","خليف"]
[3,2866,"ياسمين شمطه","عمر"]
[4,2929,"ياسر الهلال","عدنان"]
[5,2997,"عبدالمعطي الزريق","أحمد"]
[6,3623,"ربى الشحاده","أحمد"]
[7,3780,"ميلاد بشور","عيسى"]
[8,3800,"مهند الخليل","يوسف"]
[9,3811,"رغده الحسين","خالد"]
[10,3823,"فتوح بيطار","سهيل"]
[11,3824,"مايا أبو فضه","ميلاد"]
[12,3846,"نور الحسين","محمد"]
[13,3889,"باسل قليع","محمد أمين"]
[14,3923,"فاطمه الدناور","حسين"]
[15,3971,"يامن الحسين","فخري"]
[16,3989,"كارينا عفور","سعيد"]
[17,4060,"خالد جوخدار","عبد الباسط"]
[18,4073,"خالد العبدالله","محمد"]
[19,4462,"وحيد سليمان","مصطفى"]
[20,4519,"جمانة الحمود","محمد"]
[21,4527,"محمد صلاح الدين الخطيب","صلاح الدين"]
[22,4551,"يوسف بكور","محمود"]
[23,4569,"آلاء عبدالقادر","عبدالقادر"]
[24,4589,"فرح دلله","عدنان"]
[25,4590,"ايه خطاب","محمد خير"]
[26,4591,"عبد السلام احمد","خضر "]
[27,4592,"عبيده العمر ","عبد السلام "]
[28,4593,"مادلين الحمشو ","ابراهيم "]
[29,4596,"تركيه محمد السعيد","عبد الحكيم"]
[30,4597,"خالد شنو","وليد"]
[31,4598,"رويده الحيدر","معلا"]
[32,4599,"علا الشدود","هيثم"]
[33,4600,"فاطمة الغزي","يحيى"]
[34,4601,"فاطمة الدرويش","بدر"]
[35,4602,"رهف الحميدو الحميد","وليد"]
[36,4603,"تركيه الحميد","خالد"]
[37,4604,"سعيد العيسى","خالد"]
[38,4605,"رهف عشيش","احمد"]
[39,4606,"دانيا الحسين","عبد اللطيف"]
[40,4607,"فاطمه الضامن","محمد"]
[41,4608,"علا الحمدوش ","محمد"]
[42,4609,"أمل الشيخ حامد","بسام "]
[43,4610,"بشرى المواس","حسين"]
[44,4612,"هزار العلي","غازي"]
[45,4614,"فاطمه الزهراء العبدالله","عبدالحسيب"]
[46,4615,"فاطمه الحميد","احمد"]
[47,4616,"حمود الجاسم","حسان"]
[48,4617,"منار مرشد","حسين"]
[49,4618,"نور الهدى الاسعد","مسعف"]
[50,4620,"هبه الصالح","فادي"]
[51,4621,"مريم الحسن","ياسين"]
[52,4623,"عبير المصطفى","محمد"]
[53,4626,"هيفاء حمصي","ميسر"]
[54,4627,"شعيله الحسين","رجب"]
[55,4629,"بيان محمد","عمار"]
[56,4632,"مروه القدور","صلاح"]
[57,4633,"بهيره قطزه","احمد رياض"]
[58,4634,"مياسه دناور","محمود"]
[59,4635,"ياسمين المحمد","محمد"]
[60,4636,"هاجرالحمود","محمد"]
[61,4638,"اسامه الابراهيم","عز الدين"]
[62,4639,"فاطمه الزهراء البصو","محمود"]
[63,4640,"فاطمه العلي","محمد"]
[64,4644,"مريم داود","عامر"]
[65,4646,"ابراهيم عوض","وليد"]
[66,4648,"ميرنا دونه","سمير "]
[67,4649,"عليا دغموش","ياسر"]
[68,4650,"نور العمر","محمد"]
[69,4654,"فاطمه الدرويش","عبدالله"]
[70,4657,"ماري سلوم","ايمن"]
[71,4658,"مريم الاحمد","احمد"]
[72,4659,"نداء الرز","احمد"]
[73,4660,"سوسن البكري","تاج الدين"]
[74,4661,"ايمان الحمدان","واصل"]
[75,4663,"ابراهيم الاحمد","طاهر"]
[76,4664,"زينب علوش","عبدالله"]
[77,4666,"آسيا القشلان ","عبدالحليم"]
[78,4667,"سجود الأحمد","جمال"]
[79,4668,"أسماء الياسين","ياسين"]
[80,4670,"خيريه العليوي","محمد"]
[81,4671,"آيات الجاسم","محمد"]
[82,4672,"نهله كدور","محمد"]
[83,4673,"آمنه الابراهيم ","رحيمو"]
[84,4674,"ملك العبيد","طرود"]
[85,4675,"فاطمه الكويسم","خالد"]
[86,4676,"ايمان كريم","محمود"]
[87,4677,"واصل الهلال","ابراهيم "]
[88,4678,"نور الهدى الاحمد","علي"]
[89,4679,"منذر الهلال","خضر "]
[90,4680,"نهيده العرنوس","عبدالكريم"]
[91,4681,"أمينه الاحمد","حبيب"]
[92,4683,"دعاء العلوش","وليد"]
[93,4684,"محمود المحمد","خالد"]
[94,4686,"غزاله العبود المصطفى ","ممدوح"]
[95,4687,"ميس حديده","بسام "]
[96,4688,"نور الخالد","خالد"]
[97,4689,"رانيا الدرويش","خليف"]
[98,4690,"مها السليمان","عبدو"]
[99,4691,"شعاع البرغش","علي"]
[100,4695,"آلاء شحود","عبد المنعم"]
[101,4696,"مريم القوجه","رضوان"]
[102,4697,"روعه الشلاش","محمد"]
[103,4698,"زينه عرابي","عبد اللطيف"]
[104,4701,"سماهر الطماس","محسن"]
[105,4704,"بشرى الحاج حسن","علي"]
[106,4705,"ملك الاحمد","عوض"]
[107,4706,"لما اليوسف","عبدالله"]
[108,4707,"تسنيم الخلوف","احمد"]
[109,4708,"رزان حمود","محمد نديم"]
[110,4709,"دلال حميده كوجان","بديع"]
[111,4710,"ايمان الصطيف ","حيان"]
[112,4711,"رزان الخربوطي","موسى"]
[113,4712,"أحمد المحمود","اسماعيل"]
[114,4714,"عبد الهادي المحمد","خالد"]
[115,4717,"رحاب أحمد","شعبان "]
[116,4718,"رهف الضامن","موسى"]
[117,4721,"اسماء الاحمد","احمد"]
[118,4724,"علا الحسن ","جمعه"]
[119,4727,"بنان الحمود","أكرم"]
[120,4728,"ديانا المحيميد","عبد الله"]
[121,4729,"علا الفارس","عبد العزيز"]
[122,4730,"ريم عسكر","خليل"]
[123,4731,"غاده توما ","اكرم"]
[124,4732,"امل الشحود","عبد الله"]
[125,4733,"نور الكدور","حسين"]
[126,4734,"هدى الخضر العلي","عناد"]
[127,4736,"تغريد العاري ","صلاح الدين"]
[128,4737,"غسان العليوي","سعيد"]
[129,4739,"ريام الدعبول","ياسين"]
[130,4740,"رمى بصبوص","حبيب"]
[131,4742,"آيات جعمور","أحمد"]
[132,4743,"زينا بيطار","الياس"]
[133,4744,"ريم سكاف","عبدو"]
[134,4745,"مادلين اليوسف","مصطفى"]
[135,4746,"نيكول فتال شهدا","ميلاد"]
[136,4747,"محمد اياد العبد","ابراهيم "]
[137,4748,"ساره القاسم","عبد المعطي"]
[138,4749,"عصماء صيادي","عبد العزيز"]
[139,4750,"سلوى الحسين","عبد الباسط"]
[140,4751,"فرح دكدك","رجب"]
[141,4752,"آلاء الحكيم","محمد"]
[142,4753,"زينب السلوم","ابراهيم "]
[143,4754,"هزار علي","ياسر"]
[144,4755,"زينه نسب","ايمان"]
[145,4756,"نهى الخطاب","عبد الحليم"]
[146,4759,"عزه الخطيب","محمد رافع "]
[147,4760,"روان الرفاعي","أسامه"]
[148,4762,"وفاء علي","رافع"]
[149,4764,"ياسمين المحمد","عبدو"]
[150,4768,"آلاء عبد الله","عبد الله"]
[151,4769,"هدى الخطيب","عبد الكريم"]
[152,4773,"ريم السليمان","محمد"]
[153,4774,"عبد القادر النبهان","عبد الفتاح"]
[154,4776,"آنا حداد","ابراهيم "]
[155,4777,"جوزفين دلال","طلال"]
[156,4779,"عبد الغني الحمصي","محمد"]
[157,4781,"غصون عيسى ","حمدو"]
[158,4782,"ديما نجار","حسن"]
[159,4783,"سناء مندو","عبد القادر"]
[160,4785,"حسين الحسين","عبد لله"]
[161,4787,"سامر الجنيد","احمد "]
[162,4788,"ماري التوما","مروان"]
[163,4789,"ميرا احمد","محمد"]
[164,4790,"سميحه القصاب","عصام"]
[165,4791,"بتول العوض","غالب"]
[166,4792,"ياسمين الحمدو","نايف"]
[167,4793,"فاطمه دلله","عدنان"]
[168,4794,"هيفاء الخالد","عباس"]
[169,4796,"رغد سويدان","مصطفى"]
[170,4797,"محمد الأبرش","أحمد حسام"]
[171,4801,"نجاح الخليف","محمد"]
[172,4803,"ساندي الخوري","طلال"]
[173,4804,"مايا نجار","يوسف"]
[174,4805,"رزان المصطفى","حسين"]
[175,4808,"ميرنا أسعد يوسف","سعيد"]
[176,4809,"مها قديسه","وليد"]
[177,4811,"ماري برشيني","مدحات"]
[178,4813,"نور الهدى مراد","مراد"]
[179,4815,"ماري اسكاف","حنا"]
[180,4816,"مريم الحمود","محيميد"]
[181,4818,"ولاء ابو دقنين","هشام"]
[182,4819,"محمد الحمشو","عبد الحليم"]
[183,4820,"هبه جمعه","سامر"]
[184,4823,"سمر الكيجاني","محمد"]
[185,4826,"دانيه المصري","علي"]
[186,4827,"تيماء محمد علي","أحمد"]
[187,4828,"تسنيم برازي","عزام"]
[188,4829,"رويدة الاخضر","يوسف "]
[189,4830,"خالد العبيدان","عبد الحكيم"]
[190,4831,"زهور الشبان","محمد"]
[191,4832,"ماري دحدوح","سمير"]
[192,4836,"ايمان طواشي","محمد امين"]
[193,4837,"نور شقفة ","عزام"]
[194,4838,"فؤاد ابو العيون","احمد"]
[195,4840,"اسراء الزبدي","جمال"]
[196,4841,"زينه كموش","مجيد"]
[197,4843,"ريم ضبعان","الياس"]
[198,4844,"رهف عراض","خليل"]
[199,4845,"زهراء دويك","عبد الجبار"]
[200,4846,"لمى العيسى ","وليد"]
[201,4849,"بشرى الحمدوش","محمد"]
[202,4851,"فرح المصطفى","أحمد"]
[203,4854,"شهد الحزوان","محمد حيان"]
[204,4855,"تركي الحسين","أحمد"]
[205,4859,"هديل المسيحي","مفيد"]
[206,4861,"آلاء الشمالي","مصطفى"]
[207,4862,"خديجه العكش","صلاح "]
[208,4865,"زياد ضامن","عبد العزيز"]
[209,4867,"هبه شربين","عازار"]
[210,4868,"زينا الابراهيم","حبيب"]
[211,4871,"محمد الضامن","سليم"]
[212,4872,"نور الكامل","حسان"]
[213,4874,"عدي الخالد","محمد"]
[214,4875,"كريمه المصطفى","محمد"]
[215,4877,"هديل حصني","ابراهيم "]
[216,4878,"هناء قلاويز","أيمن"]
[217,4879,"علا فطراوي","عدنان"]
[218,4881,"ماريا النجار","عبده"]
[219,4882,"ريتا الشاهين","جهاد"]
[220,4883,"مارينا قديسه","وليد"]
[221,4884,"نور العفيف","احمد"]
[222,4885,"فهد الخليف","علي"]
[223,4886,"نجوى هويس","محمود"]
[224,4887,"سلام الخليل ","محمد"]
[225,4888,"نهى مهنا","عبده"]
[226,4889,"يمنى الصالح دناور","ابراهيم "]
[227,4891,"سالي منصور","جرجس"]
[228,4892,"يمنى الكردي","عمر"]
[229,4893,"أسماء السقا","عمر"]
[230,4894,"سيلفا جلاد","عبد المسيح"]
[231,4897,"مناهل الخالد","ريان"]
[232,4899,"أسماء قبش","فواز"]
[233,4900,"غدير الحمد العليوي","جمعه"]
[234,4904,"يارا العوض الجلقي","خلدون"]
[235,4913,"محمود الحسن","عبدالمحسن"]
[236,4916,"هند السعدي","احمد"]
[237,4917,"خديجة الصيلاوي","يوسف"]
[238,4938,"ايمان الهليل","عبد المحسن"]
[239,4946,"ساره الحسن","يوسف"]
[240,4952,"آمنه البارودي","مهند"]
[241,4953,"ريم الخضر","محمود"]
[242,4955,"اماني الحمزه","محمد عبد الحميد"]
[243,4968,"همام الهلال","ابراهيم"]
[244,4997,"لبانه العبود","احمد"]
[245,5019,"ماري دويب ","ياسر"]
[246,5020,"نفيسه الريمه","خالد"]
[247,5033,"ريم نحلاوي","عبد السلام"]
[248,5034,"دعد طلاع","عبد القادر"]
[249,5089,"هدى الكردي","محمد"]
[250,5092,"أحمد الجيجاوي","ياسين"]
[251,5093,"نور المزعم","محمد"]
[252,5113,"جيهان العويش","عبدالقادر"]
[253,5132,"خالد طه محمد","طه"]
[254,5135,"حنان الروبة","موفق"]
[255,5136,"نور حنا","عون"]
[256,5139,"أحلام المناع","هويان"]
[257,5141,"محمد العثمان","خالد/فوزة السلوم"]
[258,5160,"أحمد الشعباني","عمر"]
[259,5172,"جمانه عبدالرحمن","محمدجمال"]
[260,5193,"نهى نداف","وليد"]
[261,5215,"ابراهيم غناجي","خالد"]
[262,5224,"علاء الدين الحمد","عز الدين"]
[263,5240,"خليف الشيخ","رياض"]
[264,5265,"معن ديبو","كمال"]
[265,5283,"ريم العجي","الياس"]
[266,5292,"رنا هراوي","رشيد"]
[267,5293,"هبى الحسن","محمد"]
[268,5294,"جهيده ماردنلي","احمد"]
[269,5295,"أحمد عباسي","باسل"]
[270,5326,"نهلة حصني","عامر"]
[271,5331,"رولا الشاوي","محمد"]
[272,5346,"دانيا الابراهيم","أحمد"]
[273,5349,"هنادي نادر","موسى"]
[274,5351,"ردينة العلوش","حسن"]
[275,5364,"عناد الشعبان","أحمد"]
[276,5365,"حسام صطوف","حسن"]
[277,5368,"ضحى العلي","عبدالرزاق"]
[278,5379,"ولاء المسعود","احمد"]
[279,5399,"أحمد سعيد عبيد","عمر"]
[280,5408,"اسراء المصطفى","يوسف"]
[281,5415,"مريم الطيب","حسن"]
[282,5422,"أسامة الحسن","جمعة"]
[283,5450,"رهف المحمود الفاضل","ابراهيم"]
[284,5455,"أيهم المحمد","دحام "]
[285,5480,"غزل محمد الاحمد","محمد"]
[286,5500,"ياسين البكور","رياض"]
[287,5518,"منجد السلوم","ناصح"]
[288,5523,"ابراهيم ابو رحمون"]
[289,5538,"شاهة ابو كشتو","أحمد"]
[290,5553,"محمد المرهون","عمر"]
[291,5603,"بحرية العبيد السعيد","عدنان"]
[292,5606,"قصي المحمد","عبدالحكيم "]
[293,5608,"عبدالرحمن عمر","غانم"]
[294,5614,"أروى محمد","درويش"]
[295,5641,"رضية القاسم"]
[296,5646,"ابراهيم البني","عمر"]
[297,5649,"فريدة ملحان","احمد"]
[298,5651,"فاتن العلي الاسماعيل","حسين"]
[299,5653,"روان العثمان","حسين"]
[300,5654,"عبد الكريم المحمد","عبد الستار"]
[301,5672,"صبا الحسين","خالد"]
[302,5673,"أحمد العلي","خالد"]
[303,5675,"ميلاد الدعاس","ماجد"]
[304,5677,"مجد الخلف العطروز","جمعه"]
[305,5684,"طاهر ماموج"]
[306,5694,"مصعب الداني","محمد"]
[307,5702,"عبد العزيزعلي حاتم","جاسم"]
[308,5748,"بشار الياس","نعيم "]
[309,5762,"منال المنصور","خالد"]
[310,5768,"منى الحمدو","عمر"]
[311,5772,"دعاء اليوسف","عبد اللطيف"]
[312,5779,"خالدية السلطان","محمد"]
[313,5809,"احلام العبود","زكريا"]
[314,5816,"رامي الابراهيم","غازي"]
[315,5820,"محمود الحميدي","خالد"]
[316,5831,"خيرية ريحاوي","رضوان"]
[317,5832,"بتول الغريبي","خالد"]
[318,5840,"باسمة ادريس","عمر"]
[319,6041,"ألاء ياسين دالي","محمد"]
[320,6042,"احمد زعتر","عبد الفتاح"]
[321,6043,"سوزان الاحمد","عادل"]
[322,6047,"فواز نبهان","أحمد"]
[323,6048,"أمينة العلي","عبد الهادي"]
[324,6051,"سمية قولاغاسي","مظفر"]
[325,6052,"فراس سليمان","احمد"]
[326,6053,"محمد علي","بخيت"]
[327,6058,"عمر الحسين","محمد النور"]
[328,6060,"عماد الابراهيم","محمد"]
[329,6061,"هبه حسون","خالد"]
[330,6063,"فرح الجدوع","محمد"]
[331,6064,"حلا كنيفد","محمد"]
[332,6065,"وفاء الدالي أحمد","فايز"]
[333,6066,"ندى الكيال","أحمد"]
[334,6067,"مجد السيد","يحيى"]
[335,6069,"عفراء الرجب","احمد"]
[336,6073,"بتول الأخرس","فيصل"]
[337,6075,"بشرى المخلف","ثابت"]
[338,6077,"نيفين الغريب","عبد الغني"]
[339,6078,"حسن خلوف","رياض"]
[340,6079,"هناء زيدان","حسين"]
[341,6080,"محمد الأحمد","مصطفى"]
[342,6081,"هدى عسلي","عبد الرحمن"]
[343,6082,"فاطمة حليلو","احمد"]
[344,6083,"سلام مغمومه","امين"]
[345,6084,"أمل الخطيب","يحيى"]
[346,6085,"حميده الاخرس","اكرم"]
[347,6086,"الاء رحمون خضري","سالم"]
[348,6087,"يارا الابراهيم","نظير"]
[349,6089,"عائشة العموري","محمد رياض"]
[350,6091,"ولاء المحمود","عمار"]
[351,6092,"سندس حمصي","عبدالله"]
[352,6093,"امل الدينار"]
[353,6094,"عبد الرحمن الحاج حسن","محمد"]
[354,6097,"آمنه عدي","نزار"]
[355,6098,"سندس رنو","سابت"]
[356,6099,"زينب اسماعيل","زهير"]
[357,6100,"عبدالرحمن الحسن","حسن"]
[358,6102,"فاطمه الدالي","عبدالمنعم"]
[359,6104,"زيد حلبيه","نبيل"]
[360,6105,"مزنه المحمد","زكريا"]
[361,6112,"نور عبه جي","محمد خالد"]
[362,6114,"أحمد النايف","خالد"]
[363,6115,"ايمن ديب","عساف"]
[364,6118,"ربا أحمد","عادل"]
[365,6120,"حنا موسى","امين"]
[366,6121,"اسماء شيخ الغنامه","طلال"]
[367,6122,"صفاء حوا","مسلم"]
[368,6123,"زينب الخالد","يوسف"]
[369,6124,"عبد الرزاق الفهد","فيض الله"]
[370,6126,"جمعة محمد","صالح"]
[371,6127,"بتول قشاش","محمد سعيد"]
[372,6128,"محمد حسان العوض","بشار"]
[373,6129,"يوسف الحاج احمد","حامد"]
[374,6130,"روان فرنجيه","خليل"]
[375,6131,"ميريل نونو","نبيل"]
[376,6132,"محمد محمود","حسن"]
[377,6134,"ايمان الأسود","عبدالله"]
[378,6137,"بنان السلوم","محمد عبد السلام"]
[379,6138,"محمد غيانه","عبد الرزاق"]
[380,6140,"فاطمه الابراهيم","زكريا"]
[381,6142,"اسماء البكور","مصطفى"]
[382,6143,"هاشم محمد علوش","علي"]
[383,6144,"انيتا حيار","اكرم"]
[384,6145,"قمر حنتوش","ممدوح"]
[385,6146,"عائشه الحريري","زياد"]
[386,6147,"رقيه الطالب","محمد"]
[387,6150,"شيماء المحمد","احمد"]
[388,6151,"ياسمين مغمومة","فواز"]
[389,6153,"حفصه العبدالله","عبدالكريم"]
[390,6154,"نها جاسم المحمد","جمال"]
[391,6155,"اسعاف ادريس","طه"]
[392,6156,"الاء المدني","محمود"]
[393,6157,"يمامه القدور","عبدالله"]
[394,6159,"لمى كزكز","نوران"]
[395,6161,"هاجر الزوله","احمد"]
[396,6165,"براءه علوش","مصطفى"]
[397,6166,"كنانة ابراهيم","نبيه"]
[398,6170,"دعاء الرزوق","وليد"]
[399,6171,"هلا الخطيب","محمد ياسر"]
[400,6172,"رامه الحموي","عبدالله"]
[401,6173,"هبه الجعط","صايل"]
[402,6174,"رهام الشعار","محمد حسان"]
[403,6176,"مصطفى رشواني","علي"]
[404,6177,"ماري الناصر"]
[405,6178,"الاء الفارس","ياسين"]
[406,6179,"ابراهيم المحمدالمحمود","محمد"]
[407,6182,"كارلا سعود","ايليا"]
[408,6183,"يارا سعود","طوني"]
[409,6184,"اسراء الخطيب","عبدالمنعم"]
[410,6185,"دلامه المصري","عمر"]
[411,6187,"عبير شتات","بلال"]
[412,6191,"رؤى النحاس","صفوان"]
[413,6192,"احلام المشعل","يحيى"]
[414,6194,"زينب طيب","محمد"]
[415,6196,"دانيال شاعر","غازي"]
[416,6198,"اماني السلوم","علي"]
[417,6200,"هيا الفزع","ايمن"]
[418,6201,"رهف الاحمد","محمد"]
[419,6202,"علي الحسين","حسين"]
[420,6204,"فاطمه قمر الدين","محسن"]
[421,6206,"نهى النعسان","أديب"]
[422,6208,"فاطمه المرعي","عبد المنعم"]
[423,6209,"اسما فلوم","جورج"]
[424,6212,"ايناس لريشان","ياسر"]
[425,6213,"فاطمه الاسعد","سعد الدين"]
[426,6214,"مريم الحربي","محمد"]
[427,6215,"اسماء حمويه","محمد"]
[428,6218,"بشرى الغزال","صالح"]
[429,6219,"حسين حلاوه","رشيد"]
[430,6221,"بشرى الخضر","حسن"]
[431,6222,"رهف السباهي","عوض"]
[432,6223,"بتول مرقا","سهيل"]
[433,6227,"فاطمه بشور","مصطفى"]
[434,6231,"فاطمه الحيصيه","غسان"]
[435,6232,"أسماء الكنعان","خالد"]
[436,6233,"خزامه السلوم","تيسير"]
[437,6234,"محمد المعتوق","عبدالباسط"]
[438,6236,"فاطمه الخالد","فايز"]
[439,6237,"فاطمه السلوم","عبدالكافي"]
[440,6238,"آلاء ذكره","عبد العزيز"]
[441,6239,"محمد المصطفى","تركي"]
[442,6240,"ايمن المصلط","عيد"]
[443,6242,"هند حمضمض","عارف"]
[444,6244,"خالد طوقاج","عبد الكريم"]
[445,6247,"قمر الحاج احمد","زياد"]
[446,6248,"امنه كريم","محمد نور"]
[447,6249,"ريم النعسان","رياض"]
[448,6251,"معتصم الكنش","عبد الاله"]
[449,6252,"عفراء الصوراني","محمد"]
[450,6253,"علي الشيخ يوسف","عبدالله"]
[451,6257,"رانيا الطماس"]
[452,6260,"رائد جولاق","أنس"]
[453,6261,"محمود الطيار","عدنان"]
[454,6262,"ميساء الحسون","صبري"]
[455,6263,"مريم المرعي","ياسر"]
[456,6264,"ميسم غيلاييني","صفوان"]
[457,6266,"رامي جرجنازي","محمود"]
[458,6267,"أماني الاحمد","درزي"]
[459,6268,"غاده الحسون","مختار"]
[460,6269,"هتون منصور","سامر"]
[461,6270,"مريم الحلبي","بدر"]
[462,6272,"اسراء الطلاع","عبد اللطيف"]
[463,6273,"سارة المحمد","ابراهيم"]
[464,6275,"بيان المحمد","عبدالكريم"]
[465,6276,"وضحة دحروج","عبد الكريم"]
[466,6277,"مرح خلوف","محمد"]
[467,6279,"سناء الزالق","نور الدين"]
[468,6281,"مريم العمر","محمد"]
[469,6282,"الاء حمصي","محمد"]
[470,6288,"مريم قيبارو","خالد"]
[471,6290,"شيرين ابو العيون","واصل"]
[472,6293,"رزان مصطفى الاحمد اليوسف","مصطفى"]
[473,6294,"هدى عبد الحكيم  الدياب","عبد الحكيم"]
[474,6295,"البتول احمد مصطفى","احمد"]
[475,6514,"عزه خالد حجازي","خالد"]
[476,6517,"ابتسام الخضير","فواز"]
[477,6538,"فاطمه عاصم حاج احمد","عاصم"]
[478,6545,"محمد مصلح الحسن","مصلح"]
[479,6546,"هبه عبد العزيز العلي","عبد العزيز"]
[480,6551,"صبا حسن حديد","حسن"]
[481,6552,"ضامن سليم الضامن","سليم"]
[482,6553,"ولاء سليمان الشيخ علي","سليمان"]
[483,6564,"وئام عدنان المحمد الخطيب","عدنان"]
[484,6566,"مروه حمزه حمزه","حمزه"]
[485,6570,"وعد يحيى سرميني","يحيى"]
[486,6572,"زينب عدنان قسوم","عدنان"]
[487,6578,"نور الهدى احمد الباشا","احمد"]
[488,6593,"ظبيه نذير البرازي","نذير"]
[489,6598,"وسام احمد بكور","احمد"]
[490,6605,"محمود يحيى الحلاق السقا","يحيى"]
[491,6606,"هبه محمد ارحيل","محمد"]
[492,6612,"ملك عساف"]
[493,6614,"مروة عبدالكريم المعراتي","عبدالكريم"]
[494,6615,"ولاء سعدالدين باراداني","سعدالدين"]
[495,6619,"اسلام خلدون سقا","خلدون"]
[496,6625,"زينب العلي"]
[497,6629,"خلود سعيد ضامن","سعيد"]
[498,6630,"سلام زياد شقره","زياد"]
[499,6634,"ريم عناد الخضر العلي","عناد"]
[500,6639,"لبابه عادل عباس القاري","عادل"]
[501,6640,"فاطمه محمد العلي الخالد","محمد"]
[502,6642,"الاء غالب العتر","غالب"]
[503,6643,"سلام محمد تقي","محمد"]
[504,6644,"جمانه زهير عدي","زهير"]
[505,6645,"بتول محسن الشامي","محسن"]
[506,6648,"دانيه حسن المحمد علي","حسن"]
[507,6649,"عبير نجم الدين النجم","نجم الدين"]
[508,6652,"نور محمد الحاج مصطفى","محمد"]
[509,6667,"فاطمه مصطفى العيسى","مصطفى"]
[510,6668,"الاء ميران قاضي ريحا","ميران"]
[511,6669,"لين صفوان الشيخ خالد","صفوان"]
[512,6671,"رقيه عبد الرحمن الحسين","عبد الرحمن"]
[513,6673,"هبى اكرم شامية","اكرم"]
[514,6691,"بتول حسين سنان","حسين"]
[515,6693,"مروه سليمان الابراهيم","سليمان"]
[516,6697,"تركيه نصر زقزوق","نصر"]
[517,6702,"هلا عبدالرحمن العلي","عبدالرحمن"]
[518,6709,"اميمه احمد المنصور","احمد"]
[519,6713,"نجوى عبدالستار الشقره","عبدالستار"]
[520,6714,"مريم هلال الحسين","هلال"]
[521,6716,"هبه احمد العبيدي","احمد"]
[522,6723,"الاء هيثم نموز","هيثم"]
[523,6724,"الاء رياض الاخرس","رياض"]
[524,6727,"فاطمه محمد ابو حاتم","محمد"]
[525,6732,"سلام حمود عرواني","حمود"]
[526,6734,"ضياء محمد النونه المرجانه","محمد"]
[527,6735,"الاء يحيى الحزواني","يحيى"]
[528,6737,"منال خالد القصاب","خالد"]
[529,6738,"نوره مسعف علاوي","مسعف"]
[530,6740,"همسه حيان بنات","حيان"]
[531,6743,"مروه ممدوح المحيميد","ممدوح"]
[532,6745,"اناس ياسين خلوف","ياسين"]
[533,6746,"ريم ادهم الجمعة الحسن","ادهم"]
[534,6750,"بيان خالد الحسن","خالد"]
[535,6757,"نور احمد الرزوق","احمد"]
[536,6766,"وفاء رواف السليمان","رواف"]
[537,6774,"عامر محمود سعود","محمود"]
[538,6776,"رضيه عبدالستار الغلبان","عبدالستار"]
[539,6781,"سميره علي الفجر","علي"]
[540,6785,"محاسن بسام حاج جنيد","بسام"]
[541,6789,"قبس محمد صطيف","محمد"]
[542,6794,"مايا حدو الشحود","حدو"]
[543,6796,"كوثر قصاب","نجيب"]

{"sheet":"عملي","index":8,"n_rows":130,"n_cols":6,"rows_kept":130,"cut":false,"hidden":false,"merged":[[3,1,3,4]]}
[]
[]
[]
[null,"توطين"]
["عملي",5766,"ابتسام القاسم","محمد","سنة ثالثة",1]
[null,5695,"ابراهيم الجابر","عبدالرحمن",null,2]
[null,5427,"احمد العبد الله ","عبد الله ","سنة ثالثة"]
[null,5783,"احمد بدر العثمان "]
[null,5692,"اسراء حسن قطيني","حسن","سنة ثالثة"]
[null,5469,"اقبال العبد الله","محمد فاضل","سنة ثالثة"]
[null,5508,"امل الخلف "]
[null,5790,"ايمان مراد","أحمد","سنة ثالثة"]
[null,5468,"ايوب العبد","جدوع","سنة ثالثة"]
[null,5802,"أثر بكور","أديب","سنة ثالثة"]
[null,5676,"أحمد الحلبية",null,"سنة ثالثة"]
[null,5676,"أحمد الحلبية"]
[null,5427,"أحمد العبدالله"]
[null,5783,"أحمد بدر العثمان","بدر","سنة ثالثة"]
[null,5399,"أحمد سعيد عبيد","عمر","سنة ثالثة"]
[null,5647,"أريج الخليف","محمود","سنة ثالثة"]
[null,5784,"أريج الرفاعي","محمد","سنة ثالثة"]
[null,5469,"أقبال العبدالله"]
[null,5583,"ألاء الرجو","خالد","سنة ثالثة"]
[null,5774,"ألاء سرماني","عدنان"]
[null,5599,"أماني الحصرم","احمد","سنة ثالثة"]
[null,5508,"أمل الخلف"]
[null,5796,"أمنة حاج موسى","طه","سنة ثالثة"]
[null,12291,"أميرة حجي عمر"]
[null,5425,"أميرة مراد"]
[null,5468,"أيوب العبد"]
[null,5796,"آمنة حاج موسى"]
[null,5755,"باسل حسينو"]
[null,5764,"بتول الطويل","انور","سنة ثالثة"]
[null,5728,"بدور حمدون","محمدزكريا","سنة ثالثة"]
[null,5499,"براءة العثمان"]
[null,11251,"بشار الابراهيم"]
[null,4570,"بشار السليمان"]
[null,5638,"بشرى الجاسم","راضي"]
[null,5771,"بشرى برهوم",null,"سنة ثالثة"]
[null,5522,"بيان الخليل","محمد","سنة ثالثة"]
[null,5589,"بيان ربيع"]
[null,5520,"جاكلين برهوم","وائل","سنة ثالثة"]
[null,5819,"جيانا حلاق"]
[null,5454,"حسان درويش","رجب","سنة ثالثة"]
[null,5779,"خالدية السلطان"]
[null,5831,"خيرية الريحاوي"]
[null,5772,"دعاء اليوسف","عبد اللطيف","سنة ثالثة"]
[null,5733,"دعاء جعفر","عبد المنعم","سنة ثالثة"]
[null,5733,"دعاء جعفر"]
[null,5531,"دلة حاج اسماعيل","عبدالجبار","سنة ثالثة"]
[null,5531,"دلة حاج اسماعيل","عبد الجبار"]
[null,5720,"ديانا الخضر","ناصر"]
[null,5773,"ربا الحمود","نادر","سنة ثالثة"]
[null,5743,"ربا الرحمون","عبد القادر","سنة ثالثة"]
[null,5821,"ربا كرابيج"]
[null,5700,"رغد العيسى","فارس"]
[null,5542,"رنا الكردي"]
[null,5795,"رند الحاج لطوف"]
[null,5462,"رنيم الأحمد","عبد المعين","سنة ثالثة"]
[null,5441,"رنيم الشيبان","عادل ","سنة ثالثة"]
[null,5462,"رنيم عبد المعين الاحمد"]
[null,5572,"رهام حاج علي","يوسف","سنة ثالثة"]
[null,5572,"رهام حاج علي","يوسف"]
[null,5785,"رهف العبد الله",null,"سنة ثالثة"]
[null,5827,"روان تنزري","هيثم","سنة ثالثة"]
[null,5612,"روعة البكري"]
[null,5683,"زياد خليفة","محمود","سنة ثالثة"]
[null,5593,"زينة عنداني","ابراهيم","سنة ثالثة"]
[5593,"زينة عنداني","ابراهيم"]
[null,5592,"سامي العمر","خالد","سنة ثالثة"]
[null,5807,"سلمى السعيد"]
[null,5781,"سماح جعفر","نهاد","سنة ثالثة"]
[null,5775,"سنا الشيخ أحمد"]
[null,5624,"سها الجوباسي"]
[null,5794,"سهام طعمة حلبي","محمد","سنة ثالثة"]
[null,5507,"سوسن الخلف","محمدماهر"]
[null,5443,"شروق العبد الله","جميل ","سنة ثالثة"]
[null,5620,"عائشة الحاج أحمد"]
[null,5620,"عائشة حاج أحمد"]
[null,5825,"عائشة حمروش","أحمد"]
[null,5780,"عبد السلام اليوسف","عبد الحميد","سنة ثالثة"]
[null,6283,"عزة دكدك"]
[null,5735,"عفراء اليوسف","قايد","سنة ثالثة"]
[null,5788,"علا حاج حمدان","عبدالله","سنة ثالثة"]
[null,5712,"علا فلاحة","أسعد","سنة ثالثة"]
[null,5711,"علياء الحجي","هيثم","سنة ثالثة"]
[null,5573,"عماد الاحمد","نشأت"]
[null,5761,"عيسى حمادي ","مهنا","سنة ثالثة"]
[null,5495,"غفران بيازيد","محمد","سنة ثالثة"]
[null,5727,"غنوة الاسمر","محمد بنيه","سنة ثالثة"]
[null,5837,"فاداء الأحمد"]
[null,5741,"فاطمة الأزرق"]
[null,5590,"فاطمة الطوير","ابراهيم ","سنة ثالثة"]
[null,5834,"فاطمة عمعوم"]
[null,5549,"فاطمه العيسى","عبد الكريم","سنة ثالثة"]
[null,5837,"فداء الأحمد"]
[null,5817,"ليلى رنة"]
[null,5805,"مجد المحمد","اسماعيل"]
[null,5512,"محمد التمر","حمود","سنة ثالثة"]
[null,5496,"محمد الحسين"]
[null,5517,"محمد الحمو","هلال ","سنة ثالثة"]
[null,5516,"محمد الخليل","عبد"]
[null,5436,"محمد الزود","عبد الحميد","سنة ثالثة"]
[null,5630,"محمد السلوم","حاتم","سنة ثالثة"]
[null,5496,"محمد أمير الحسن"]
[null,5838,"محمد حسين الحمود"]
[null,5477,"محمود  المحيميد"]
[null,5524,"مخلف النايف"]
[null,5825,"مرام الجلل","حازم"]
[null,5830,"مرح عبد القادر","علي","سنة ثالثة"]
[null,5633,"مروة سفرة"]
[null,5818,"مريم الحلاق"]
[null,5605,"مريم المحمد","احمد","سنة ثالثة"]
[null,5694,"مصعب الداني","محمد","سنة ثالثة"]
[null,5411,"معن الحسين","محمد","سنة ثالثة"]
[null,5607,"منال صادق"]
[null,5839,"مؤمنة الجعبو"]
[null,5839,"مؤمنة الحعبو","ابراهيم"]
[null,5736,"ميساء الحسين","حسين"]
[null,5404,"نايا عجمي","عبد الكريم","سنة ثالثة"]
[null,5810,"نديرة محروف"]
[null,5658,"نسرين نعوس","محمد عيد","سنة ثالثة"]
[null,5555,"نور الحسن","عدنان ","سنة ثالثة"]
[null,5822,"نور الشيخ أحمد"]
[null,5725,"نور بابا علي","محمد"]
[null,5644,"هيفاء الجاسم","جاسم ","سنة ثالثة"]
[null,5713,"ولاء الحمروش"]
[null,5628,"ولاء الدرغام","ليندو","سنة ثالثة"]
[null,5811,"ولاء كريم"]
[null,5734,"ولاء منصور"]

{"sheet":"ورقة1","index":9,"n_rows":0,"n_cols":0,"rows_kept":0,"cut":false,"hidden":false,"merged":[]}